lending/lending_fUSD_20250418
["ID","MTS","AMOUNT","RATE_DAILY","PERIOD"]
[358336912,1744949440879,-500.0,0.00131506,120]
[358336913,1744949440888,-500.0,0.00131506,120]
[358336914,1744949440898,-500.0,0.00131506,120]
[358336915,1744949440907,-500.0,0.00131506,120]
[358336916,1744949440916,-500.0,0.00131506,120]
[358336917,1744949440925,-538.14970533,0.00131506,120]
[358336918,1744949440933,-500.0,0.00131506,120]
[358336919,1744949440943,-248.62483484,0.00131506,120]
[358336920,1744949440952,-539.92431498,0.00131506,120]
[358336921,1744949440962,-509.55384225,0.00131506,120]
[358336922,1744949440972,-500.0,0.00131506,120]
[358336923,1744949440982,-500.0,0.00131506,120]
[358336924,1744949440991,-500.0,0.00131506,120]
[358336925,1744949441001,-5573.03,0.00131506,120]
[358336926,1744949441011,-500.0,0.00131506,120]
[358336927,1744949441022,-500.0,0.00131506,120]
[358336928,1744949441032,-537.80034681,0.00131506,120]
[358336929,1744949441041,-500.0,0.00131506,120]
[358336930,1744949441049,-541.78758546,0.00131506,120]
[358336931,1744949441058,-500.0,0.00131506,120]
[358336932,1744949441067,-500.0,0.00131506,120]
[358336933,1744949441075,-500.0,0.00131506,120]
[358336934,1744949441083,-500.0,0.00131506,120]
[358336935,1744949441091,-500.0,0.00131506,120]
[358336936,1744949441100,-500.0,0.00131506,120]
[358336937,1744949441108,-500.0,0.00131506,120]
[358336938,1744949441117,-509.32874814,0.00131506,120]
[358336939,1744949441126,-221.22212938,0.00131506,120]
[358336940,1744949441135,-515.19281424,0.00131506,120]
[358336941,1744949441143,-550.67842126,0.00131506,120]
[358336942,1744949441152,-500.0,0.00131506,120]
[358336943,1744949441162,-500.0,0.00131506,120]
[358336944,1744949441181,-500.0,0.00131506,120]
[358336945,1744949441197,-500.0,0.00131506,120]
[358336946,1744949441206,-523.82655043,0.00131506,120]
[358336947,1744949441216,-500.0,0.00131506,120]
[358336948,1744949441225,-500.0,0.00131506,120]
[358336949,1744949441235,-500.0,0.00131506,120]
[358336950,1744949441244,-286.33857128,0.00131506,120]
[358336951,1744949441288,-500.0,0.00131506,120]
[358336952,1744949441298,-500.0,0.00131506,120]
[358336953,1744949441307,-500.0,0.00131506,120]
[358336954,1744949441317,-513.26670078,0.00131506,120]
[358336955,1744949441326,-290.95790471,0.00131506,120]
[358336956,1744949441336,-269.54675758,0.00131506,120]
[358336957,1744949441346,-290.77970018,0.00131506,120]
[358336958,1744949441355,-500.0,0.00131506,120]
[358336959,1744949441365,-534.01283032,0.00131506,120]
[358336960,1744949441374,-313.484981,0.00131506,120]
[358336961,1744949441384,-500.0,0.00131506,120]
[358336962,1744949441393,-503.19142854,0.00131506,2]
[358336963,1744949441403,-569.77490696,0.00131506,120]
[358336964,1744949441412,-500.0,0.00131506,120]
[358336965,1744949441421,-533.34022732,0.00131506,120]
[358336966,1744949441430,-548.22576014,0.00131506,120]
[358336967,1744949441441,-500.0,0.00131506,120]
[358336968,1744949441450,-500.0,0.00131506,120]
[358336969,1744949441460,-520.21572391,0.00131506,120]
[358336970,1744949441469,-500.0,0.00131506,120]
[358336971,1744949441479,-222.91304585,0.00131506,120]
[358336972,1744949441488,-500.0,0.00131506,120]
[358336973,1744949441498,-479.30926039,0.00131506,120]
[358336974,1744949441507,-31.33871726,0.00131506,120]
[358336975,1744949441729,-468.66128274,0.00131506,120]
[358336976,1744949441739,-500.0,0.00131506,120]
[358336977,1744949441748,-500.0,0.00131506,2]
[358336978,1744949441757,-500.0,0.00131506,120]
[358336979,1744949441766,-410.89162035,0.00131506,60]
[358336986,1744949443656,-186.0,0.0012,31]
[358336987,1744949443666,-330.06534078,0.00131195,120]
[358336996,1744949446266,-846.0,0.0013,120]
[358336997,1744949446299,-5333.56661752,0.0013,120]
[358336998,1744949446318,-376.64328001,0.0013,120]
[358336999,1744949446330,-411.27399999,0.0013,120]
[358337027,1744950308205,350.0,0.0002,2]
[358337028,1744950308231,900.0,0.0002,2]
[358337029,1744950308257,900.0,0.0002,2]
[358337030,1744950308282,800.0,0.0002,2]
[358337031,1744950308309,800.0,0.0002,2]
[358337032,1744950308336,800.0,0.0002,2]
[358337033,1744950308363,800.0,0.0002,2]
[358337034,1744950308392,800.0,0.0002,2]
[358337035,1744950308420,800.0,0.0002,2]
[358337036,1744950309023,-250.0,0.0002,2]
[358337037,1744950330796,-296.46187106,0.000199,2]
[358337038,1744950332481,250.0,0.00017,2]
[358337039,1744950333574,300.0,0.00019,2]
[358337040,1744950348451,-151.43131926,0.000199,2]
[358337041,1744950348478,-145.0305518,0.0002,2]
[358337042,1744950351130,-447.28699965,0.0002,2]
[358337043,1744950355049,-250.0,0.0002,2]
[358337044,1744950371673,-224.94,0.00019999,2]
[358337045,1744950427136,-662.17261335,0.00019973,2]
[358337046,1744950428038,-302.89854807,0.00019973,2]
[358337047,1744950435271,-1803.81192486,0.00019973,2]
[358337048,1744950443102,-888.68627334,0.00019973,2]
[358337049,1744950444077,-284.98734463,0.00019973,2]
[358337050,1744950444108,-430.71304173,0.00019973,2]
[358337051,1744950449907,400.0,0.000195,7]
[358337052,1744950451987,900.0,0.000196,7]
[358337053,1744950452151,-4942.73025402,0.00019973,2]
[358337054,1744950452174,-75.06,0.00019999,2]
[358337055,1744950452195,-300.0,0.00019999,2]
[358337056,1744950452217,-674.70159675,0.00019999,2]
[358337057,1744950452239,-300.0,0.00019999,2]
[358337058,1744950452261,-300.0,0.00019999,2]
[358337059,1744950452284,-850.0,0.00019999,2]
[358337060,1744950452307,-193.76909339,0.00019999,2]
[358337061,1744950452328,-463.17632557,0.00019999,2]
[358337062,1744950452351,-209.35803276,0.00019999,2]
[358337063,1744950452372,-164.35610581,0.00019999,2]
[358337064,1744950452393,-164.15492604,0.00019999,2]
[358337065,1744950452417,-20.58191851,0.0002,2]
[358337066,1744950454138,1400.0,0.000197,7]
[358337067,1744950456220,1900.0,0.000198,7]
[358337068,1744950458306,2400.0,0.000199,7]
[358337071,1744950565138,-300.0,0.00019999,2]
[358337072,1744950565159,-300.0,0.00019999,2]
[358337073,1744950565182,-300.0,0.00019999,2]
[358337074,1744950565204,-107.66071158,0.00019999,2]
[358337076,1744950574838,-392.33928842,0.00019999,2]
[358337078,1744950574868,-300.0,0.00019999,2]
[358337079,1744950574900,-639.31736164,0.0002,2]
[358337083,1744950599916,-471.35381103,0.000199,2]
[358337086,1744950603347,2000.0,0.0002,4]
[358337105,1744950632289,-118.8891252,0.000199,2]
[358337107,1744950632298,-439.9886937,0.000199,2]
[358337108,1744950632345,-1925.09129062,0.000199,2]
[358337109,1744950632456,-424.83679485,0.000199,2]
[358337110,1744950632514,-6352.43584572,0.000199,2]
[358337111,1744950632524,-463.66899906,0.000199,2]
[358337112,1744950632534,-181.84261027,0.00019973,2]
[358337113,1744950632544,-159.72243332,0.00019973,2]
[358337114,1744950632554,-159.72236118,0.00019973,2]
[358337115,1744950632564,-152.71629015,0.00019973,2]
[358337117,1744950632574,-506.34954078,0.00019973,2]
[358337119,1744950632584,-484.53120095,0.00019973,2]
[358337121,1744950632593,-263.70633347,0.00019973,2]
[358337123,1744950632603,-216.50732309,0.0001999,2]
[358337125,1744950632612,-216.50732309,0.0001999,2]
[358337127,1744950632621,-11729.34496287,0.0002,2]
[358337129,1744950632633,-1661.53110685,0.0002,2]
[358337180,1744950638310,-811.62459038,0.000199,2]
[358337181,1744950638370,-10107.02056679,0.000199,2]
[358337182,1744950638380,-296161.73013277,0.0002,2]
[358337183,1744950638587,-2239.69328089,0.0002,2]
[358337184,1744950638600,-33839.89999999,0.0002,2]
[358337186,1744950640534,-3640499.23911119,0.0002,2]
[358337187,1744950640544,-1219.77452978,0.0002,2]
[358337188,1744950640554,-5065.69441194,0.0002,2]
[358337189,1744950640564,-193.37308347,0.000201,3]
[358337190,1744950640575,-7306.89140553,0.000201,2]
[358337191,1744950640585,-177.18831247,0.000202,2]
[358337192,1744950640594,-532.78758134,0.000203,2]
[358337193,1744950640604,-623.25273419,0.000204,2]
[358337194,1744950640614,-350.0,0.00021,2]
[358337195,1744950640623,-400.0,0.00023,2]
[358337196,1744950640633,-601.57,0.00023,2]
[358337197,1744950640642,-30725.299907,0.000248,3]
[358337198,1744950640652,-1482.27370011,0.000249,3]
[358337199,1744950640662,-15000.0,0.0003,2]
[358337200,1744950640672,-301.99999951,0.00031,2]
[358337201,1744950640682,-7306.89140552,0.00031189,2]
[358337202,1744950640691,-2346.97511891,0.00031525,4]
[358337203,1744950640701,-2346.97511891,0.00031525,4]
[358337204,1744950640710,-526.20297034,0.00039726,15]
[358337205,1744950640723,-526.20297034,0.00039726,15]
[358337206,1744950640733,-526.20297034,0.00039726,15]
[358337207,1744950640742,-526.20297034,0.00039726,15]
[358337208,1744950640752,-526.20297034,0.00039726,15]
[358337209,1744950640761,-526.20297034,0.00039726,15]
[358337210,1744950640771,-526.20297034,0.00039726,15]
[358337211,1744950640781,-526.20297034,0.00039726,15]
[358337212,1744950640790,-526.20297034,0.00039726,15]
[358337213,1744950640799,-526.20297034,0.00039726,15]
[358337214,1744950640808,-526.20297034,0.00039726,15]
[358337215,1744950640818,-526.20297034,0.00039726,15]
[358337216,1744950640828,-526.20297034,0.00039726,15]
[358337217,1744950640838,-526.20297034,0.00039726,15]
[358337218,1744950640847,-526.20297034,0.00039726,15]
[358337219,1744950640857,-526.20297034,0.00039726,15]
[358337220,1744950640866,-526.20297034,0.00039726,15]
[358337221,1744950640875,-526.20297034,0.00039726,15]
[358337222,1744950640885,-568.29920797,0.00039726,15]
[358337223,1744950640894,-568.29920797,0.00039726,15]
[358337224,1744950640904,-568.29920797,0.00039726,15]
[358337225,1744950640913,-568.29920797,0.00039726,15]
[358337226,1744950640923,-568.29920797,0.00039726,15]
[358337227,1744950640933,-568.29920797,0.00039726,15]
[358337228,1744950640943,-568.29920797,0.00039726,15]
[358337229,1744950640954,-568.29920797,0.00039726,15]
[358337230,1744950640963,-568.29920797,0.00039726,15]
[358337231,1744950640973,-568.29920797,0.00039726,15]
[358337233,1744950640982,-7306.89140552,0.00042278,15]
[358337234,1744950640991,-156.66,0.00044033,2]
[358337236,1744950641001,-250.0,0.00044254,2]
[358337237,1744950641010,-326.24,0.00048136,2]
[358337238,1744950641019,-273.509036,0.00049,5]
[358337239,1744950641029,-156.65,0.00049556,120]
[358337240,1744950641038,-386.74,0.0005,120]
[358337241,1744950641049,-8369.86,0.0005,60]
[358337242,1744950641064,-500.0,0.00050562,10]
[358337243,1744950641074,-753.8625899,0.00051093,23]
[358337244,1744950641084,-503.27335369,0.00052073,10]
[358337245,1744950641095,-150.0,0.00052074,30]
[358337246,1744950641104,-161.4668966,0.00052074,30]
[358337247,1744950641114,-2000.0,0.00052074,30]
[358337248,1744950641123,-179299.77460374,0.00052074,30]
[358337249,1744950641138,-313506.81527741,0.00052074,30]
[358337250,1744950641147,-156.55839659,0.00052074,30]
[358337251,1744950641157,-181.4282957,0.00052074,30]
[358337252,1744950641167,-6099.43061822,0.00052074,60]
[358337253,1744950641176,-1085.92881324,0.00052074,30]
[358337254,1744950641186,-238.5111399,0.00052092,30]
[358337255,1744950641195,-300.0,0.00052092,30]
[358337256,1744950641205,-300.0,0.00052092,30]
[358337257,1744950641215,-300.0,0.00052092,30]
[358337258,1744950641224,-300.0,0.00052092,30]
[358337259,1744950641234,-294.75348104,0.00053,100]
[358337260,1744950641243,-7306.89140552,0.00053367,15]
[358337261,1744950641253,-500.0,0.0005405,2]
[358337262,1744950641263,-159.72242618,0.0005405,10]
[358337263,1744950641273,-156.65,0.00054446,120]
[358337264,1744950641283,-623.25273415,0.00055432,60]
[358337265,1744950641294,-1000.0,0.00056042,15]
[358337266,1744950641303,-150.0,0.00057962,2]
[358337267,1744950641313,-2046.24252633,0.00059,120]
[358337268,1744950641324,-156.65,0.00059337,120]
[358337269,1744950641334,-200.0,0.00060391,2]
[358337270,1744950641343,-1009.22149261,0.000618,120]
[358337271,1744950641352,-2503.80632257,0.00062,120]
[358337272,1744950641362,-600.0,0.00062029,120]
[358337273,1744950641371,-600.0,0.0006227,120]
[358337274,1744950641381,-600.0,0.00063299,120]
[358337275,1744950641391,-3702.16891281,0.00063387,2]
[358337276,1744950641400,-156.65,0.00064227,120]
[358337277,1744950641410,-7306.89140552,0.00064456,15]
[358337278,1744950641419,-1789.42595639,0.000649,120]
[358337279,1744950641429,-500.0,0.00064995,120]
[358337280,1744950641439,-3550.27814821,0.00065,120]
[358337281,1744950641448,-153.28,0.000654,66]
[358337282,1744950641458,-153.28,0.000654,66]
[358337283,1744950641468,-153.28,0.000654,66]
[358337284,1744950641477,-153.28,0.000654,66]
[358337285,1744950641487,-153.28,0.000654,66]
[358337286,1744950641496,-153.28,0.000654,66]
[358337287,1744950641506,-153.28,0.000654,66]
[358337288,1744950641515,-153.28,0.000654,66]
[358337289,1744950641525,-153.28,0.000654,66]
[358337290,1744950641534,-153.28,0.000654,66]
[358337291,1744950641544,-252.13546393,0.00066,120]
[358337292,1744950641554,-215.28424796,0.00066,30]
[358337293,1744950641563,-1308.38869997,0.00066,120]
[358337294,1744950641573,-168.08,0.00066094,120]
[358337295,1744950641583,-551.22615562,0.00068,120]
[358337296,1744950641592,-500.0,0.00068493,120]
[358337297,1744950641602,-500.0,0.00068493,120]
[358337298,1744950641611,-500.0,0.00068493,120]
[358337299,1744950641620,-500.0,0.00068493,120]
[358337300,1744950641630,-500.0,0.00068493,120]
[358337301,1744950641638,-500.0,0.00068493,120]
[358337302,1744950641648,-642.18034606,0.00068493,120]
[358337303,1744950641658,-500.0,0.00068493,120]
[358337304,1744950641668,-500.0,0.00068493,120]
[358337305,1744950641677,-500.0,0.00068493,120]
[358337306,1744950641687,-156.65,0.00069117,120]
[358337307,1744950641697,-498.613,0.0007,120]
[358337308,1744950641708,-532.78758132,0.000702,80]
[358337309,1744950641718,-500.0,0.00070772,120]
[358337310,1744950641727,-156.65,0.00074008,120]
[358337311,1744950641737,-7306.89140552,0.00075544,15]
[358337312,1744950641748,-600.0,0.00078473,120]
[358337313,1744950641757,-156.65,0.00078898,120]
[358337314,1744950641767,-300.0,0.00079999,60]
[358337315,1744950641777,-300.0,0.00079999,60]
[358337316,1744950641787,-186.0,0.0008,120]
[358337317,1744950641797,-170.0,0.0008,120]
[358337318,1744950641807,-111360.64864436,0.0008,2]
[358337319,1744950641817,-929.84271673,0.0008,120]
[358337320,1744950641827,-500.0,0.00080247,120]
[358337321,1744950641837,-1616.60231902,0.0008137,30]
[358337322,1744950641848,-1999.999999,0.00082,120]
[358337323,1744950641858,-500.0,0.00082192,120]
[358337324,1744950641867,-544.6378372,0.00082192,120]
[358337325,1744950641876,-8369.86,0.000822,60]
[358337326,1744950641886,-156.65,0.00083789,120]
[358337327,1744950641896,-170.0,0.00085,120]
[358337328,1744950641905,-7306.89140552,0.00086633,15]
[358337329,1744950641915,-162.19684763,0.000875,60]
[358337330,1744950641925,-500.0,0.000875,14]
[358337331,1744950641934,-623.44890813,0.000875,60]
[358337332,1744950641944,-214.43186497,0.000875,60]
[358337333,1744950641955,-159.79403537,0.000875,14]
[358337334,1744950641964,-156.65,0.00088679,120]
[358337335,1744950641974,-170.0,0.0009,120]
[358337336,1744950641983,-301.53,0.0009,2]
[358337337,1744950641992,-623.25273415,0.00090463,120]
[358337338,1744950642001,-500.0,0.0009218,120]
[358337339,1744950642010,-1002.83815348,0.00092979,14]
[358337340,1744950642020,-156.65,0.0009357,120]
[358337341,1744950642029,-268.13961461,0.0009429,7]
[358337342,1744950642038,-170.0,0.00095,120]
[358337343,1744950642050,-123997.04998046,0.00095,120]
[358337344,1744950642061,-7306.89140552,0.00097722,15]
[358337345,1744950642245,-156.65,0.0009846,120]
[358337346,1744950642255,-5200.0,0.0009887,120]
[358337347,1744950642266,-3687.48304251,0.0009888,120]
[358337348,1744950642275,-500.0,0.00099137,120]
[358337349,1744950642284,-500.0,0.00099411,120]
[358337350,1744950642293,-500.0,0.00099685,120]
[358337351,1744950642303,-500.0,0.00099958,120]
[358337352,1744950642313,-229.86793012,0.001,30]
[358337353,1744950642322,-170.0,0.001,120]
[358337354,1744950642331,-601.57,0.001,60]
[358337355,1744950642342,-500.0,0.00100232,120]
[358337356,1744950642351,-500.0,0.00100506,120]
[358337357,1744950642361,-509.61455883,0.00100599,120]
[358337358,1744950642370,-500.0,0.0010078,120]
[358337359,1744950642380,-500.0,0.00101054,120]
[358337360,1744950642389,-500.0,0.00101328,120]
[358337361,1744950642399,-572.23,0.00101602,120]
[358337362,1744950642407,-156.65,0.0010335,120]
[358337363,1744950642417,-500.0,0.00104169,120]
[358337364,1744950642427,-500.0,0.00106745,120]
[358337365,1744950642436,-500.0,0.00106932,2]
[358337366,1744950642445,-156.65,0.00108241,120]
[358337367,1744950642456,-7306.89140552,0.00108811,15]
[358337368,1744950642466,-288.17,0.001098,2]
[358337369,1744950642476,-186.471,0.0011,120]
[358337370,1744950642485,-500.0,0.00110347,120]
[358337371,1744950642495,-156.65,0.00113131,120]
[358337372,1744950642504,-16343.17,0.00113305,120]
[358337373,1744950642513,-172.81,0.00114644,2]
[358337374,1744950642522,-23900.0,0.00115283,30]
[358337375,1744950642531,-8369.86,0.00116,60]
[358337376,1744950642541,-1000.0,0.00116849,120]
[358337377,1744950642550,-156.65,0.00118022,120]
[358337378,1744950642559,-431.82,0.00118742,30]
[358337379,1744950642568,-159.67,0.00118951,120]
[358337380,1744950642577,-7306.89140552,0.001199,15]
[358337381,1744950642587,-726.0344484,0.0011997,120]
[358337382,1744950642596,-56842.04935881,0.0011999,120]
[358337383,1744950642606,-190.37,0.0012,120]
[358337384,1744950642614,-700.0,0.0012,120]
[358337385,1744950642624,-700.0,0.0012,120]
[358337386,1744950642633,-700.0,0.0012,120]
[358337387,1744950642643,-700.0,0.0012,120]
[358337388,1744950642652,-700.0,0.0012,120]
[358337389,1744950642662,-256.70639613,0.0012,120]
[358337390,1744950642671,-532.78758132,0.001201,80]
[358337391,1744950642681,-165.52,0.00120161,2]
[358337392,1744950642691,-250.0,0.00120221,120]
[358337393,1744950642701,-1049.20354481,0.00121781,120]
[358337394,1744950642711,-166.37,0.0012226,120]
[358337395,1744950642721,-151.69121092,0.00123,2]
[358337396,1744950642731,-172.81,0.00123247,2]
[358337397,1744950642741,-1539.0,0.001234,21]
[358337398,1744950642750,-500.0,0.00123742,120]
[358337399,1744950642759,-700.0,0.00123859,120]
[358337400,1744950642769,-1525.93579401,0.00124,120]
[358337401,1744950642778,-157.26509467,0.00124498,120]
[358337402,1744950642787,-700.0,0.0012467,120]
[358337403,1744950642796,-623.25273415,0.00125495,120]
[358337404,1744950642806,-19800.0,0.00126,120]
[358337405,1744950642816,-2643.3811645,0.00127396,120]
[358337406,1744950642825,-300.0,0.00128299,90]
[358337407,1744950642835,-300.0,0.00128299,90]
[358337408,1744950642845,-289.24138552,0.00128299,90]
[358337409,1744950642854,-78500.0,0.001283,120]
[358337410,1744950642863,-300.0,0.00128499,90]
[358337411,1744950642873,-300.0,0.00128499,90]
[358337412,1744950642883,-151.0,0.001285,120]
[358337413,1744950642892,-151.0,0.001285,120]
[358337414,1744950642902,-155.998386,0.001285,120]
[358337415,1744950642910,-229.349667,0.001285,120]
[358337416,1744950642920,-151.0,0.001285,120]
[358337417,1744950642929,-151.0,0.001285,120]
[358337418,1744950642939,-267.097449,0.001285,120]
[358337419,1744950642948,-151.0,0.001285,120]
[358337420,1744950642958,-267.097449,0.001285,120]
[358337421,1744950642967,-151.0,0.001285,120]
[358337422,1744950642977,-87542.79962232,0.001285,120]
[358337423,1744950642987,-300.0,0.00128799,90]
[358337424,1744950642996,-300.0,0.00128799,90]
[358337425,1744950643006,-200000.0,0.001288,120]
[358337426,1744950643015,-152.400263,0.001288,120]
[358337427,1744950643024,-151.0,0.001288,120]
[358337428,1744950643034,-151.0,0.001288,120]
[358337429,1744950643044,-152.076926,0.001288,120]
[358337430,1744950643058,-237.607399,0.001288,120]
[358337431,1744950643067,-151.0,0.001288,120]
[358337432,1744950643077,-219140.95118875,0.0012888,120]
[358337434,1744950643228,-1328.34595672,0.0012888,120]
[358337435,1744950643240,-320.02207081,0.0012888,120]
[358337436,1744950643262,-2210.55824433,0.0012888,120]
[358337437,1744950643278,-964.85244654,0.0012888,120]
[358337438,1744950643289,-12466.0839861,0.0012888,120]
[358337440,1744950644430,-253.88923684,0.00030567,2]
[358337457,1744951544125,-150.0,0.00034548,10]
[358337458,1744951544145,-250.0,0.00036986,2]
[358337459,1744951544164,-31.39237387,0.0004,7]
[358337460,1744951618086,-359.46028848,0.0004,7]
[358337461,1744951632151,-259.73082514,0.0004,7]
[358337462,1744951635139,-354.41651251,0.0004,7]
[358337463,1744951635163,-250.0,0.00042795,2]
[358337464,1744951635185,-250.0,0.00044,2]
[358337465,1744951635207,-150.0,0.00045589,10]
[358337466,1744951635229,-426.33796194,0.00048041,2]
[358337467,1744951635251,-250.0,0.00048141,2]
[358337468,1744951635275,-426.33796194,0.000517,2]
[358337469,1744951635298,-190.87484887,0.000518,2]
[358337470,1744951635319,-560.83245271,0.000519,30]
[358337471,1744951635339,-156.27,0.00063473,120]
[358337472,1744951635365,-500.0,0.00063473,120]
[358337473,1744951635386,-150.0,0.0006537,2]
[358337474,1744951635409,-732.0,0.00065399,20]
[358337475,1744951635435,-153.3,0.000654,66]
[358337476,1744951635460,-153.3,0.000654,66]
[358337477,1744951635484,-153.3,0.000654,66]
[358337478,1744951635509,-153.3,0.000654,66]
[358337479,1744951635533,-153.3,0.000654,66]
[358337480,1744951635559,-153.3,0.000654,66]
[358337481,1744951635584,-153.3,0.000654,66]
[358337482,1744951635609,-153.3,0.000654,66]
[358337483,1744951635635,-153.3,0.000654,66]
[358337484,1744951635661,-153.3,0.000654,66]
[358337485,1744951635683,-500.0,0.00070651,120]
[358337486,1744951635704,-971.42,0.00079452,120]
[358337487,1744951635726,-3239.974431,0.0008589,30]
[358337488,1744951635749,-534.89034129,0.00086322,120]
[358337489,1744951637301,-65.10965871,0.00086322,120]
[358337490,1744951637322,-523.0,0.0008737,2]
[358337491,1744951637345,-235.73738859,0.000899,120]
[358337492,1744951639088,-264.26261141,0.000899,120]
[358337493,1744951639111,-600.0,0.00091274,120]
[358337494,1744951639140,-507.0,0.00091479,2]
[358337495,1744951639163,-447.07164723,0.0009315,120]
[358337496,1744951639193,-524.34835277,0.0009315,120]
[358337497,1744951639216,-434.97035979,0.0009589,120]
[358337502,1744951831421,-152.99,0.00054948,30]
[358337503,1744951831431,-166.45,0.00054948,30]
[358337504,1744951831441,-350.0,0.00059249,111]
[358337505,1744951831452,-150.0,0.0006,120]
[358337506,1744951831462,-250.0,0.0006286,2]
[358337507,1744951831471,-500.0,0.00064246,120]
[358337508,1744951831482,-500.0,0.00079882,120]
[358337509,1744951831491,-500.0,0.00085455,120]
[358337510,1744951831500,-500.0,0.00095,120]
[358337511,1744951831510,-65.02964021,0.0009589,120]
[358337512,1744951831520,-213.57693309,0.0009589,30]
[358337513,1744951831529,-500.0,0.00095899,120]
[358337514,1744951831539,-509.61455883,0.00096406,120]
[358337515,1744951831549,-371.6,0.00096406,30]
[358337516,1744951831559,-150.99,0.00096406,30]
[358337517,1744951831569,-700.0,0.00096766,120]
[358337518,1744951831579,-500.0,0.00097859,120]
[358337519,1744951831589,-500.0,0.00098218,120]
[358337520,1744951831598,-500.0,0.00098492,120]
[358337521,1744951831607,-1525.93579401,0.0009869,120]
[358337522,1744951831617,-568.0,0.00098699,120]
[358337523,1744951831631,-680.0,0.00098699,120]
[358337524,1744951831640,-15200.79,0.000987,120]
[358337525,1744951831650,-500.0,0.00098766,120]
[358337526,1744951831659,-413.07917568,0.0009904,120]
[358337527,1744951831676,-86.92082432,0.0009904,120]
[358337528,1744951831685,-500.0,0.00099314,120]
[358337529,1744951831696,-501.23237501,0.00099315,120]
[358337530,1744951831706,-500.0,0.00099588,120]
[358337531,1744951831715,-500.0,0.00099862,120]
[358337532,1744951831725,-500.0,0.00099894,120]
[358337533,1744951831735,-533.13663339,0.001,120]
[358337534,1744951831744,-500.0,0.00100136,120]
[358337535,1744951831754,-600.0,0.00100201,20]
[358337536,1744951831763,-527.0,0.00100201,20]
[358337537,1744951831772,-150.0,0.00100201,30]
[358337538,1744951831782,-500.0,0.00100258,120]
[358337539,1744951831792,-1000.0,0.00100409,22]
[358337540,1744951831801,-500.0,0.0010041,120]
[358337541,1744951831811,-187.99,0.00100569,120]
[358337542,1744951831821,-500.0,0.00100588,120]
[358337543,1744951831830,-760.33,0.00100684,120]
[358337544,1744951831840,-572.23,0.00100684,120]
[358337547,1744951831849,-169.46252897,0.00100684,120]
[358337549,1744951831859,-200.0,0.00101311,30]
[358337551,1744951831869,-188.86,0.00102398,120]
[358337553,1744951831878,-571.35337178,0.00102582,120]
[358337555,1744951831888,-16736.94,0.00102583,120]
[358337557,1744951831897,-1076.28,0.00102932,30]
[358337559,1744951831907,-760.33,0.00103013,120]
[358337560,1744951831916,-250.0,0.00103121,120]
[358337561,1744951831926,-500.0,0.00103151,120]
[358337562,1744951831935,-287.9,0.00103181,2]
[358337563,1744951831945,-165.21,0.00103574,30]
[358337565,1744951831955,-6754.93312908,0.00104042,2]
[358337567,1744951831967,-26978.63185726,0.00104042,2]
[358337569,1744951831976,-13975.01,0.00104051,2]
[358337570,1744951831986,-2017.61,0.00104283,2]
[358337573,1744951831995,-760.33,0.00105342,120]
[358337574,1744951832005,-287.9,0.00105444,2]
[358337577,1744951832015,-187.99,0.00105459,120]